[Event "CCT Julius Baer-D3 2024"]
[Site "Online"]
[Date "2024.09.27"]
[Round "2"]
[White "Svane, Rasmus"]
[Black "Moussard, Jules"]
[Result "0-1"]
[ECO "D35"]
[WhiteElo "2629"]
[BlackElo "2600"]
[Annotator "TA"]
[PlyCount "130"]
[EventDate "2024.09.25"]
[EventType "swiss"]
[EventCountry "NET"]
[SourceTitle "playchess.com"]
[Source "ChessBase"]
[SourceQuality "1"]
[TimeControl "600+2"]

{[%evp 15,130,8,14,7,31,20,46,25,41,18,17,9,23,20,15,21,32,24,31,25,21,0,0,-17,62,35,52,-19,31,-15,28,25,40,0,0,0,56,50,96,89,136,115,129,121,170,187,211,193,172,-46,-60,-91,-91,-265,-274,-275,-282,-286,-283,-866,-783,-778,-873,-749,-737,-786,-785,-942,-926,-903,-775,-961,-402,-441,-448,-403,-365,-366,-362,-476,-122,-131,0,-467,-490,-453,-463,-387,-269,-243,-254,-518,-533,-539,-558,-500,-278,-1443,-1512,-1705,-1405,-1528,-1458,-1109,0,-29982,-29983,-29983,-29984,-29984,-29985,-29985,-29986,-29993,-29994,-29994,-1994]} 1. c4 {[%emt 0:00:02]} e6 {[%emt 0:00:03]} 2. Nc3 {[%emt 0:00:02]} d5 {[%emt 0:00:01]} 3. d4 {[%emt 0:00:01]} Nf6 {[%emt 0:00:03]} 4. cxd5 {[%emt 0:00:01]} exd5 {[%emt 0:00:00]} 5. Bg5 {[%emt 0:00:00]} c6 {[%emt 0:00:01]} 6. e3 {[%emt 0:00:01]} h6 {[%emt 0:00:01]} 7. Bh4 {[%emt 0:00:01]} Be7 {[%emt 0:00:00]} 8. Bd3 {[%emt 0:00:01]} O-O {[%emt 0:00:01]} 9. Nge2 {[%emt 0:00:01]} Ne8 {[%emt 0:00:02]} 10. Bg3 {[%emt 0:00:01]} Nd6 {[%emt 0:00:01]} 11. O-O {[%emt 0:00:02] White is slightly better.} Re8 {[%emt 0:00:02]} 12. Qd2 {[%emt 0:00:39]} Bf8 {[%emt 0:00:23]} 13. f3 {[%emt 0:00:39]} Nc4 {[%emt 0:00:31]} 14. Bxc4 {[%emt 0:00:05]} dxc4 {[%emt 0:00:00]} 15. e4 {[%emt 0:01:28]} b5 {[%emt 0:00:57][%cal Bb7b5,Bb5b4][%mdl 32]} 16. a4 {[%emt 0:02:17]} b4 {[%emt 0:00:08]} 17. Nd1 {[%emt 0:00:01]} Ba6 {[%emt 0:00:53][%cal Of7f5]} 18. Re1 {[%emt 0:00:40]} Nd7 {[%emt 0:01:57][%cal Od7c5]} 19. Qc2 {[%emt 0:00:23]} Qa5 {[%emt 0:01:13]} (19... c5 $11 20. d5 h5) 20. Ne3 $14 {[%emt 0:00:18]} Nb6 {[%emt 0:00:01]} 21. Red1 {[%emt 0:01:29]} ({White should play} 21. Bc7 $14) 21... Rac8 {[%emt 0:01:27]} (21... Nd5 $11 22. Bf2 (22. exd5 $2 Rxe3 23. Nf4 cxd5 $19) (22. Nxc4 Bxc4 23. Qxc4 Ne3 $17) 22... Nxe3 23. Bxe3 Rab8) 22. Bf2 {[%emt 0:00:29]} (22. Bf4 $14) 22... Rcd8 {[%emt 0:00:07]} 23. Ng3 {[%emt 0:00:40]} Rd7 {[%emt 0:00:13]} 24. Ng4 {[%emt 0:00:16]} (24. Qc1 $5) 24... b3 {[%emt 0:00:15]} 25. Qc1 {[%emt 0:00:07]} c3 {[%emt 0:00:05]} ({Better is} 25... Nxa4 $11 26. Be1 (26. Ne5 $2 Rxe5 27. dxe5 Rxd1+ 28. Qxd1 Nxb2 $19) 26... Qb5) 26. Be1 $1 {[%emt 0:00:09]} cxb2 {[%emt 0:00:20]} (26... Bb4 $14 27. bxc3 Bf8) 27. Qxb2 $16 {[%emt 0:00:05]} Bb4 {[%emt 0:00:04]} (27... Nc4 $142 28. Qxb3 Qg5) 28. Qxb3 {[%emt 0:00:05]} Bxe1 {[%emt 0:00:02]} 29. Rxe1 {[%emt 0:00:00] Threatens to win with Nf5.} Rxd4 {[%emt 0:00:57]} (29... Nc4 $16) 30. Nf5 $18 {[%emt 0:00:02]} Rd2 {[%emt 0:00:01] [#]} 31. Nfxh6+ $1 {[%emt 0:00:09][%mdl 512]} gxh6 {[%emt 0:00:01]} 32. Nf6+ $2 {[%emt 0:00:31]} ({White has to play} 32. Nxh6+ $18 Kh8 33. f4 (33. Qxf7 Qc5+ 34. Kh1 Rf8 $16) (33. Nxf7+ $2 Kg7 $19)) 32... Kf8 $15 {[%emt 0:00:04] Strongly threatening ...Re6.} 33. Qa3+ {[%emt 0:00:12]} Re7 $1 {[%emt 0:00:10] ...Nc4 is the strong threat.} 34. Rad1 $2 {[%emt 0:00:06] [#]} (34. Ng8 $17 c5 (34... Rxg2+ $2 35. Kxg2 Qg5+ 36. Kh1 $18) 35. Nxe7) 34... Nc4 $1 $19 {[%emt 0:00:07]} (34... Qxa4 $2 35. Qxa4 (35. Rxd2 $2 Qxa3 36. Rdd1 Qc5+ 37. Kh1 Kg7 $19) 35... Nxa4 36. Rxd2 $18) 35. Nh7+ {[%emt 0:00:06]} Ke8 {[%emt 0:00:00]} 36. Nf6+ {[%emt 0:00:01]} Kd8 {[%emt 0:00:01]} 37. Rxd2+ $2 {[%emt 0:00:01]} (37. Qc1 Kc8 38. Rxd2 Qxd2 39. Qxd2 Nxd2 40. Rc1) 37... Qxd2 {[%emt 0:00:00][%cal Rd2e1]} 38. Qa1 {[%emt 0:00:01]} Ne3 {[%emt 0:00:14]} 39. Rxe3 {[%emt 0:00:03]} Qxe3+ {[%emt 0:00:00]} 40. Kh1 {[%emt 0:00:02]} Re6 {[%emt 0:00:06]} 41. h3 {[%emt 0:00:02]} Qd2 {[%emt 0:00:06]} 42. Ng4 {[%emt 0:00:02]} Kc7 {[%emt 0:00:05]} 43. Qg7 {[%emt 0:00:02]} Bf1 {[%emt 0:00:03]} (43... Qc1+ $142 44. Kh2 Qf4+ 45. Kh1 Rd6) 44. Qxf7+ {[%emt 0:00:04]} Kb6 {[%emt 0:00:02][%csl Gf1][%cal Rd2g2]} 45. Ne3 {[%emt 0:00:03]} Qxe3 {[%emt 0:00:28]} 46. Qxe6 {[%emt 0:00:00]} Qf2 {[%emt 0:00:10][%csl Gf1][%cal Rf2g2]} 47. Qb3+ {[%emt 0:00:01]} Kc5 $2 {[%emt 0:00:03]} (47... Ka6 $19 {[%csl Gf1][%cal Rf2g2] is more deadly.} 48. Qg8 Ka5) 48. Qc3+ $17 {[%emt 0:00:01] [#]} Kb6 $2 {[%emt 0:00:01][%mdl 8192]} (48... Kd6 $1 $17 {[%csl Gf1][%cal Rf2g2]} 49. Qg7 h5 50. e5+ Kd5) 49. Qb3+ $19 {[%emt 0:00:01] Black keeps a firm grip on the game.} Ka6 {[%emt 0:00:01][%csl Gf1][%cal Rf2g2]} 50. Qg8 {[%emt 0:00:01]} Ka5 {[%emt 0:00:02][%cal Oc6c5] ...c5! would now be deadly.} 51. e5 {[%emt 0:00:04]} Qe3 {[%emt 0:00:05]} 52. e6 {[%emt 0:00:01]} Kxa4 {[%emt 0:00:03] Hoping for ...Bc4.} 53. Qe8 $2 {[%emt 0:00:06]} (53. e7 {is the only way for White.} Qxe7 54. Qa2+ Qa3 55. Qc2+ Ka5 56. Qxc6) 53... Bb5 {[%emt 0:00:02]} 54. Qd7 {[%emt 0:00:01]} a5 {[%emt 0:00:02]} 55. e7 {[%emt 0:00:03]} c5 {[%emt 0:00:00]} 56. Qg4+ {[%emt 0:00:02]} (56. Qd1+ Kb4 57. Qb1+ Kc4 58. Qa2+ Qb3 59. Qxa5) 56... c4 {[%emt 0:00:01][%cal Oa4b4]} 57. Qg6 {[%emt 0:00:03]} Qe1+ {[%emt 0:00:02]} (57... Qxe7 58. Qc2+ Ka3 (58... Kb4 59. Qb2+ Ka4 60. Qc2+ Kb4 61. Qb2+ Ka4 62. Qc2+ $11) 59. Qc3+ Ka2 (59... Ka4 60. Qc2+ Kb4 61. Qb2+ Ka4 62. Qc2+ $11) 60. Qc2+ Ka1 (60... Ka3 61. Qc3+ Ka2 62. Qc2+ Ka3 $11) 61. Qc1+ Ka2 62. Qc2+ Ka1 (62... Ka3 63. Qc3+ Ka4 64. Qc2+ Ka3 $11) 63. Qc1+ Ka2 64. Qc2+ $11) 58. Kh2 {[%emt 0:00:01]} Qe5+ {[%emt 0:00:02]} (58... Qxe7 59. Qc2+ Ka3 (59... Kb4 60. Qb2+ Ka4 61. Qc2+ Ka3 62. Qc3+ Ka4 63. Qc2+ $11) 60. Qc3+ Ka2 (60... Ka4 61. Qc2+ Ka3 62. Qc3+ Ka4 63. Qc2+ $11) 61. Qc2+ Ka1 (61... Ka3 62. Qc3+ Ka2 63. Qc2+ Ka1 64. Qc1+ Ka2 65. Qc2+ $11) 62. Qc1+ Ka2 63. Qc2+ Ka3 64. Qc3+ Ka2 (64... Ka4 65. Qc2+ Kb4 66. Qb2+ Ka4 67. Qc2+ $11) 65. Qc2+ $11) 59. Kg1 {[%emt 0:00:01]} Qxe7 $2 {[%emt 0:00:01]} ({Black should try} 59... c3 $19 {aiming for ...Qc5+.} 60. Qc2+ Kb4 61. Qb1+ Kc5) 60. Qxh6 $2 {[%emt 0:00:01][%mdl 8192]} (60. Qc2+ $11 Kb4 61. Qb2+ Ka4 62. Qc2+ Ka3 (62... Kb4 63. Qb2+ Ka4 64. Qc2+ $11) 63. Qc3+ Ka4 64. Qc2+) 60... Qc5+ {[%emt 0:00:01] Black mates.} 61. Kh2 {[%emt 0:00:01]} c3 {[%emt 0:00:00]} 62. Qc1 {[%emt 0:00:01]} c2 {[%emt 0:00:01]} 63. h4 {[%emt 0:00:04]} Kb3 {[%emt 0:00:02]} 64. g4 {[%emt 0:00:03]} Qf2+ {[%emt 0:00:03]} 65. Kh3 {[%emt 0:00:02]} Bf1+ {[%emt 0:00:02] Weighted Error Value: White=0.63/Black=0.49.  Loses game:     	White=1     	---        Missed win:     	White=1     	Black=1      Mistake:       	White=5     	Black=7      Inaccurate:     	White=3     	Black=4      OK:         	White=15    	Black=8      Best:        	White=5     	Black=7      Strong:       	White=1     	Black=2} 0-1

[Event "CCT Julius Baer-D3 2024"]
[Site "Online"]
[Date "2024.09.27"]
[Round "2"]
[White "Santos Latasa, Jaime"]
[Black "Keymer, Vincent"]
[Result "1/2-1/2"]
[ECO "C54"]
[WhiteElo "2624"]
[BlackElo "2730"]
[Annotator "RC"]
[PlyCount "88"]
[EventDate "2024.09.25"]
[EventType "swiss"]
[EventCountry "NET"]
[SourceTitle "playchess.com"]
[Source "ChessBase"]
[SourceQuality "1"]
[TimeControl "600+2"]

1. e4 {[%emt 0:00:03]} e5 {[%emt 0:00:06]} 2. Nf3 {[%emt 0:00:01]} Nc6 {[%emt 0:00:00]} 3. Bc4 {[%emt 0:00:01]} Nf6 {[%emt 0:00:01]} 4. d3 {[%emt 0:00:01]} Bc5 {[%emt 0:00:01]} 5. O-O {[%emt 0:00:01]} a6 {[%emt 0:00:01]} 6. c3 {[%emt 0:00:02]} Ba7 {[%emt 0:00:03]} 7. a4 {[%emt 0:00:02]} d6 {[%emt 0:00:03]} 8. Re1 {[%emt 0:00:01]} O-O {[%emt 0:00:02]} 9. h3 {[%emt 0:00:01]} h6 {[%emt 0:00:01]} 10. Nbd2 {[%emt 0:00:02]} Be6 {[%emt 0:00:01]} 11. Bxe6 {[%emt 0:00:02]} fxe6 {[%emt 0:00:00]} 12. b4 {[%emt 0:00:01]} Ne7 {[%emt 0:00:03]} 13. Nf1 {[%emt 0:00:11]} Ng6 {[%emt 0:00:01]} 14. Ra2 {[%emt 0:00:03]} d5 {[%emt 0:00:01]} 15. exd5 {[%emt 0:00:48]} Nxd5 {[%emt 0:00:23]} 16. Rc2 {[%emt 0:00:04]} Qd7 {[%emt 0:01:09]} 17. a5 {[%emt 0:00:38]} Qa4 {[%emt 0:00:14]} 18. Bd2 {[%emt 0:00:08]} Rxf3 {[%emt 0:00:54]} 19. gxf3 {[%emt 0:00:07]} Rf8 {[%emt 0:00:02]} 20. Nh2 {[%emt 0:00:20]} Rf5 {[%emt 0:01:25]} 21. Be3 {[%emt 0:00:52]} c5 {[%emt 0:00:47]} 22. Rc1 {[%emt 0:00:32]} Qe8 {[%emt 0:00:03]} 23. bxc5 {[%emt 0:00:03]} Ngf4 {[%emt 0:00:04]} 24. Kh1 {[%emt 0:00:02]} Qh5 {[%emt 0:00:18]} 25. Rg1 {[%emt 0:00:10]} Nxh3 {[%emt 0:00:03]} 26. Rg2 {[%emt 0:00:05]} Qh4 {[%emt 0:01:24]} 27. Qd2 {[%emt 0:00:32]} Rh5 {[%emt 0:00:13]} 28. Rg4 {[%emt 0:00:08]} Qf6 {[%emt 0:00:01]} 29. c6 {[%emt 0:00:15]} Ng5 {[%emt 0:00:52]} 30. Bxg5 {[%emt 0:01:10]} hxg5 {[%emt 0:00:04]} 31. Kg2 {[%emt 0:00:31]} bxc6 {[%emt 0:00:03]} 32. Rh1 {[%emt 0:00:08]} Nf4+ {[%emt 0:00:10]} 33. Rxf4 {[%emt 0:00:02]} Qxf4 {[%emt 0:00:24]} 34. Qxf4 {[%emt 0:00:19]} gxf4 {[%emt 0:00:11]} 35. Rb1 {[%emt 0:00:01]} Bxf2 {[%emt 0:00:07]} 36. Ng4 {[%emt 0:00:06]} Be3 {[%emt 0:00:04]} 37. Rb8+ {[%emt 0:00:19]} Kh7 {[%emt 0:00:01]} 38. Rc8 {[%emt 0:00:06]} e4 {[%emt 0:00:17]} 39. fxe4 {[%emt 0:00:17]} Rxa5 {[%emt 0:00:00]} 40. Rxc6 {[%emt 0:00:03]} Rc5 {[%emt 0:00:09]} 41. Rxa6 {[%emt 0:00:16]} Rxc3 {[%emt 0:00:01]} 42. Rd6 {[%emt 0:00:01]} Bc5 {[%emt 0:00:10]} 43. Rd7 {[%emt 0:00:15]} Kg6 {[%emt 0:00:22]} 44. Kf3 {[%emt 0:00:05]} Be3 {[%emt 0:00:11]} 1/2-1/2

[Event "CCT Julius Baer-D3 2024"]
[Site "Online"]
[Date "2024.09.27"]
[Round "2"]
[White "Theodorou, Nikolas"]
[Black "Makarian, Rudik"]
[Result "1/2-1/2"]
[ECO "B51"]
[WhiteElo "2619"]
[BlackElo "2550"]
[Annotator "TA"]
[PlyCount "121"]
[EventDate "2024.09.25"]
[EventType "swiss"]
[EventCountry "NET"]
[SourceTitle "playchess.com"]
[Source "ChessBase"]
[SourceQuality "1"]
[TimeControl "600+2"]

{[%evp 51,121,-58,-40,-37,-35,-34,-22,-36,-14,-16,0,0,0,-60,0,-75,0,-80,-77,-85,-22,-24,-10,-84,-27,-25,-20,-31,-27,-22,-13,-20,-17,-12,-14,-24,0,0,0,-113,0,-113,0,-113,0,-113,-113,-113,-113,-113,0,0,0,0,0,0,8,0,0,0,0,0,0,0,0,0,0,0,0,0,0,0]} 1. e4 {[%emt 0:00:02]} c5 {[%emt 0:00:04]} 2. Nf3 {[%emt 0:00:01]} d6 {[%emt 0:00:07]} 3. Bb5+ {[%emt 0:00:02]} Nd7 {[%emt 0:00:02]} 4. a4 {[%emt 0:00:09]} Ngf6 {[%emt 0:00:02]} 5. Nc3 {[%emt 0:00:01]} g6 {[%emt 0:00:06]} 6. d4 {[%emt 0:00:01] B51: Sicilian: Moscow Variation (3 Bb5+) without 3...Bd7.} cxd4 {[%emt 0:00:05]} 7. Nxd4 {[%emt 0:00:00]} Bg7 {[%emt 0:00:04]} 8. O-O {[%emt 0:00:01]} a6 {[%emt 0:00:08]} 9. Bc4 {[%emt 0:00:01]} O-O {[%emt 0:00:02]} 10. Re1 {[%emt 0:00:02]} Qc7 {[%emt 0:01:01]} 11. Ba2 {[%emt 0:00:07]} Nc5 {[%emt 0:00:33]} 12. h3 $146 {[%emt 0:00:10]} ({Predecessor:} 12. Bg5 e6 13. Qd2 Bd7 14. a5 b5 15. axb6 Qxb6 16. Nb3 Rfc8 17. Rad1 Ne8 18. Be3 Nxb3 19. Bxb3 Qb4 20. Bd4 a5 {½-½ Vratny,R (2179)-Vitak,P (2252) CZE-chT2F 1516 2015 (10.32)}) 12... e6 {[%emt 0:00:10]} 13. Bg5 {[%emt 0:00:34]} b6 {[%emt 0:00:36]} 14. Qf3 {[%emt 0:00:40]} Nfd7 {[%emt 0:00:44]} 15. Rad1 {[%emt 0:00:02]} Bb7 {[%emt 0:00:05]} 16. Qg3 {[%emt 0:00:21]} Ne5 {[%emt 0:00:12]} 17. h4 {[%emt 0:02:07]} h5 {[%emt 0:00:34]} 18. f3 {[%emt 0:00:04]} Kh7 {[%emt 0:00:12]} 19. Kh1 {[%emt 0:00:03]} Rac8 {[%emt 0:00:13]} 20. Nde2 {[%emt 0:00:11]} Bc6 {[%emt 0:00:20]} 21. Bb3 {[%emt 0:00:26]} b5 {[%emt 0:00:11]} 22. axb5 {[%emt 0:00:02]} axb5 {[%emt 0:00:00]} 23. Nd4 {[%emt 0:00:05]} b4 {[%emt 0:00:07]} 24. Nce2 {[%emt 0:00:04]} Bd7 {[%emt 0:00:47]} 25. Be3 {[%emt 0:00:20]} Qb7 {[%emt 0:00:18]} 26. Nf4 {[%emt 0:00:04]} Nxb3 {[%emt 0:00:13]} 27. cxb3 {[%emt 0:00:01]} Nc6 {[%emt 0:00:07]} 28. Nxc6 {[%emt 0:00:40]} Rxc6 {[%emt 0:00:12]} 29. Rd2 {[%emt 0:00:04]} Rfc8 {[%emt 0:00:09]} 30. Red1 {[%emt 0:00:01]} Qa6 {[%emt 0:00:16]} 31. Qg5 {[%emt 0:00:13]} Be8 {[%emt 0:00:43]} 32. Qe7 {[%emt 0:00:31]} (32. e5 $11) 32... Kg8 {[%emt 0:00:01]} ({Black should play} 32... Qa2 $15) 33. Kh2 {[%emt 0:01:32]} (33. Rxd6 $11 Rxd6 34. Qxd6 (34. Rxd6 Qf1+ 35. Kh2 Bf8 $15) 34... Qxd6 35. Rxd6) 33... Qb5 {[%emt 0:00:34]} (33... Be5 $17 {White must now prevent ...Qa2.} 34. Kh1 Qa8) 34. Ne2 {[%emt 0:00:26]} (34. Rxd6 $11 R6c7 35. Qg5) 34... R6c7 $17 {[%emt 0:00:40]} 35. Qg5 {[%emt 0:00:01]} Qxg5 {[%emt 0:00:24]} ({Better is} 35... e5 $17) 36. hxg5 $11 {[%emt 0:00:00]} Rc2 {[%emt 0:00:04]} 37. f4 {[%emt 0:00:02]} (37. Nd4 $11 R2c7 38. Ne2) 37... Rxd2 {[%emt 0:00:20]} (37... Bxb2 $17 38. Kg3 d5 39. exd5 exd5) 38. Rxd2 $11 {[%emt 0:00:00]} Bc6 {[%emt 0:00:01]} 39. Rc2 {[%emt 0:00:20]} Bb7 {[%emt 0:00:01]} 40. Rxc8+ {[%emt 0:00:00]} Bxc8 {[%emt 0:00:01]} 41. Bd2 $1 {[%emt 0:00:00]} Ba6 {[%emt 0:00:17]} 42. Ng1 {[%emt 0:00:02]} Bxb2 {[%emt 0:00:22]} 43. Bxb4 {[%emt 0:00:00]} Bd3 {[%emt 0:00:09]} 44. Bxd6 {[%emt 0:00:05]} Bxe4 {[%emt 0:00:00]} 45. Nf3 {[%emt 0:00:05]} (45. Kg3 $11) 45... f6 {[%emt 0:00:07]} ({Black should try} 45... Bxf3 $17 46. gxf3 Bg7) 46. b4 {[%emt 0:00:12] [#]} (46. Kg3 $11) 46... Kf7 {[%emt 0:00:04]} (46... Bxf3 $1 $17 47. gxf3 Kf7 48. gxf6 Bxf6) 47. gxf6 {[%emt 0:00:07]} (47. Kg3 $11 {remains equal.}) 47... Bxf6 {[%emt 0:00:04]} (47... Bxf3 $1 $17 48. gxf3 Bxf6) 48. b5 {[%emt 0:00:36]} (48. Ne5+ $11 {keeps the balance.} Ke8 49. Kh3) 48... Bxf3 $17 {[%emt 0:00:02]} 49. gxf3 {[%emt 0:00:00]} Bd8 {[%emt 0:00:01]} 50. Bc5 {[%emt 0:00:30] [#]} Bc7 {[%emt 0:00:01]} (50... Be7 $1 $17 {[%cal Re7c5]} 51. Bd4 Ke8) 51. b6 $11 {[%emt 0:00:01]} Bxf4+ {[%emt 0:00:01]} 52. Kh3 {[%emt 0:00:05]} Ke8 {[%emt 0:00:02]} 53. b7 {[%emt 0:00:04]} g5 {[%emt 0:00:02]} 54. Be3 {[%emt 0:00:19]} Bb8 {[%emt 0:00:05]} 55. Bxg5 {[%emt 0:00:01]} Kd7 {[%emt 0:00:00]} 56. Kh4 {[%emt 0:00:02]} Kc6 {[%emt 0:00:00]} 57. Kxh5 {[%emt 0:00:01]} Kxb7 {[%emt 0:00:01]} 58. Kg6 {[%emt 0:00:00]} Kc6 {[%emt 0:00:00]} 59. f4 {[%emt 0:00:04]} Kd5 {[%emt 0:00:02]} 60. f5 {[%emt 0:00:01]} exf5 {[%emt 0:00:00]} 61. Kxf5 {[%emt 0:00:01]} 1/2-1/2

[Event "CCT Julius Baer-D3 2024"]
[Site "Online"]
[Date "2024.09.27"]
[Round "2"]
[White "Kamsky, Gata"]
[Black "Sindarov, Javokhir"]
[Result "1/2-1/2"]
[ECO "A48"]
[WhiteElo "2609"]
[BlackElo "2677"]
[Annotator "RC"]
[PlyCount "68"]
[EventDate "2024.09.25"]
[EventType "swiss"]
[EventCountry "NET"]
[SourceTitle "playchess.com"]
[Source "ChessBase"]
[SourceQuality "1"]
[TimeControl "600+2"]

1. d4 {[%emt 0:00:03]} Nf6 {[%emt 0:00:05]} 2. Bf4 {[%emt 0:00:09]} g6 {[%emt 0:00:39]} 3. c3 {[%emt 0:00:04]} Bg7 {[%emt 0:00:11]} 4. Nf3 {[%emt 0:00:03]} O-O {[%emt 0:00:11]} 5. Nbd2 {[%emt 0:00:09]} d6 {[%emt 0:00:06]} 6. h3 {[%emt 0:00:02]} Nfd7 {[%emt 0:00:35]} 7. e4 {[%emt 0:01:43]} e5 {[%emt 0:00:03]} 8. dxe5 {[%emt 0:00:03]} Nxe5 {[%emt 0:00:01]} 9. Nxe5 {[%emt 0:00:03]} dxe5 {[%emt 0:00:34]} 10. Be3 {[%emt 0:00:04]} Qe7 {[%emt 0:00:02]} 11. Bc4 {[%emt 0:00:11]} b6 {[%emt 0:00:35]} 12. a4 {[%emt 0:01:16]} Bb7 {[%emt 0:01:46]} 13. h4 {[%emt 0:00:05]} Ba6 {[%emt 0:00:45]} 14. h5 {[%emt 0:00:18]} Bxc4 {[%emt 0:00:02]} 15. Nxc4 {[%emt 0:00:03]} Qe6 {[%emt 0:00:00]} 16. Qd5 {[%emt 0:00:37]} Qxd5 {[%emt 0:00:01]} 17. exd5 {[%emt 0:00:01]} Nd7 {[%emt 0:00:01]} 18. hxg6 {[%emt 0:00:03]} hxg6 {[%emt 0:00:02]} 19. O-O-O {[%emt 0:00:10]} f5 {[%emt 0:00:06]} 20. f3 {[%emt 0:00:03]} Kf7 {[%emt 0:00:01]} 21. Kc2 {[%emt 0:00:54]} Rh8 {[%emt 0:00:03]} 22. Na3 {[%emt 0:00:16]} a6 {[%emt 0:00:27]} 23. Nc4 {[%emt 0:00:11]} Rxh1 {[%emt 0:00:27]} 24. Rxh1 {[%emt 0:00:03]} b5 {[%emt 0:00:57]} 25. Na5 {[%emt 0:01:29]} Nf6 {[%emt 0:00:08]} 26. Rd1 {[%emt 0:00:02]} Bf8 {[%emt 0:00:01]} 27. axb5 {[%emt 0:00:10]} axb5 {[%emt 0:00:01]} 28. Nc6 {[%emt 0:00:02]} Bd6 {[%emt 0:00:08]} 29. Bg5 {[%emt 0:00:15]} Rh8 {[%emt 0:00:29]} 30. Na7 {[%emt 0:00:11]} b4 {[%emt 0:00:41]} 31. Nb5 {[%emt 0:00:55]} bxc3 {[%emt 0:00:03]} 32. bxc3 {[%emt 0:00:02]} Rh2 {[%emt 0:00:05]} 33. Rd2 {[%emt 0:00:02]} Rh5 {[%emt 0:00:50]} 34. Bxf6 {[%emt 0:00:08]} Kxf6 {[%emt 0:00:00]} 1/2-1/2

[Event "CCT Julius Baer-D3 2024"]
[Site "Online"]
[Date "2024.09.27"]
[Round "2"]
[White "Yoo, Christopher Woojin"]
[Black "Niemann, Hans Moke"]
[Result "1-0"]
[ECO "D40"]
[WhiteElo "2603"]
[BlackElo "2733"]
[Annotator "TA"]
[PlyCount "77"]
[EventDate "2024.09.25"]
[EventType "swiss"]
[EventCountry "NET"]
[SourceTitle "playchess.com"]
[Source "ChessBase"]
[SourceQuality "1"]
[TimeControl "600+2"]

{[%evp 18,77,4,0,0,0,0,-16,16,21,0,0,12,0,-2,0,7,0,18,11,20,11,8,10,59,71,64,70,214,222,211,207,224,134,386,375,375,126,196,71,71,62,76,70,65,65,68,74,73,72,172,86,78,77,88,87,428,109,97,104,898,897]} 1. Nf3 {[%emt 0:00:06]} d5 {[%emt 0:00:06]} 2. d4 {[%emt 0:00:05]} Nf6 {[%emt 0:03:10]} 3. c4 {[%emt 0:00:04]} e6 {[%emt 0:00:03]} 4. Nc3 {[%emt 0:00:04]} c5 {[%emt 0:00:03]} 5. e3 {[%emt 0:00:06]} Nc6 {[%emt 0:00:04]} 6. a3 {[%emt 0:00:03]} dxc4 {[%emt 0:00:03]} 7. Bxc4 {[%emt 0:00:04]} a6 {[%emt 0:00:02]} 8. Ba2 {[%emt 0:00:04]} b5 {[%emt 0:00:13]} 9. O-O {[%emt 0:00:03]} Bb7 {[%emt 0:00:03]} 10. d5 {[%emt 0:01:24]} exd5 {[%emt 0:00:06]} 11. Nxd5 {[%emt 0:00:03][%cal Oe3e4]} c4 {[%emt 0:00:11]} 12. e4 {[%emt 0:00:06]} Be7 {[%emt 0:00:07] The position is equal.} (12... Nxe4 $5 13. Re1 Ne7 14. Rxe4 Qxd5 $11) 13. b3 {[%emt 0:00:21]} cxb3 {[%emt 0:00:40]} 14. Qxb3 {[%emt 0:00:05] White wants to mate with Nxf6+.} O-O {[%emt 0:00:05]} 15. Qd3 {[%emt 0:00:24]} Nxd5 {[%emt 0:00:11]} 16. exd5 {[%emt 0:00:04] Hoping for Bb1.} Na5 $1 {[%emt 0:00:18][%cal Oa5c4]} 17. Rd1 $40 {[%emt 0:00:27][%mdl 128] White has some attack.} Bf6 {[%emt 0:00:04]} 18. Rb1 {[%emt 0:00:03][%cal Oa3a4]} Rc8 {[%emt 0:00:02] [#]} 19. a4 $1 {[%emt 0:00:25]} Rc3 {[%emt 0:00:04]} 20. Qd2 {[%emt 0:00:28]} bxa4 {[%emt 0:00:19]} (20... Qc7 $11 21. Bb2 (21. axb5 Rc2 $17) 21... Rc2) 21. Bb2 {[%emt 0:00:16]} Nb3 {[%emt 0:00:14]} 22. Qf4 {[%emt 0:00:05]} (22. Bxc3 Nxd2 23. Bxd2 Bxd5 24. Bxd5 Qxd5 $17) 22... Rc8 {[%emt 0:01:36]} ({Better is} 22... Qc7 $1 $14 23. Qxa4 Nc5) 23. Ba3 $1 $18 {[%emt 0:00:09]} (23. Qxa4 $6 Nc5 24. Qb4 Bxb2 25. Qxb2 (25. Rxb2 Re8 $14) 25... Re8 $14) 23... Re8 {[%emt 0:00:31]} 24. Qxa4 {[%emt 0:00:04]} Na5 {[%emt 0:00:03]} 25. Re1 {[%emt 0:00:30] Prevents Re2.} (25. Nd2 $1 $18) 25... Rxe1+ $4 {[%emt 0:00:09][%mdl 8192]} (25... Bxd5 $2 26. Bxd5 (26. Qxe8+ Qxe8 27. Rxe8+ Rxe8 $18) 26... Rxe1+ 27. Rxe1 $18) (25... Bc3 $16 {was called for.} 26. Rxe8+ Qxe8 27. Qxe8+ Rxe8) 26. Rxe1 {[%emt 0:00:03]} h6 {[%emt 0:00:03]} 27. Rd1 {[%emt 0:00:33]} (27. Bb4 $18) 27... Ba8 {[%emt 0:00:12]} (27... Qc7 $16) 28. Bb4 {[%emt 0:00:09]} (28. h4 $18 {is more deadly.}) 28... Nc4 $16 {[%emt 0:00:04] ...Nb2 is the strong threat.} 29. Qxa6 {[%emt 0:00:11]} Nb2 {[%emt 0:00:03]} (29... Bxd5 $2 30. Rxd5 Qe8 31. Bxc4 $18) 30. Re1 {[%emt 0:00:09]} Rb8 $1 {[%emt 0:00:06]} 31. Ba5 {[%emt 0:00:12] White is much more active.} Qd7 {[%emt 0:00:03]} 32. d6 $1 {[%emt 0:00:11]} Bc6 {[%emt 0:00:13][%cal Oc6b5] [#] Threatens to win with ...Bb5!} 33. Bxf7+ $1 {[%emt 0:00:40]} Kh7 {[%emt 0:00:18]} (33... Kxf7 $2 34. Re7+ $18) (33... Kh8 $16 {was necessary.}) 34. Be6 {[%emt 0:00:09]} (34. Bc7 $18 Ra8 35. Qe2 Qxf7 36. Qc2+ Nd3 37. Qxc6 (37. Qxd3+ Qg6 $16)) 34... Qxd6 {[%emt 0:00:03]} 35. Bf5+ {[%emt 0:00:03]} Kh8 {[%emt 0:00:04]} 36. h4 {[%emt 0:00:46]} Na4 $2 {[%emt 0:00:05][%mdl 8192]} (36... Qf4 $16 {is a better chance.}) 37. Rc1 $2 {[%emt 0:00:24]} (37. Re6 $18 {is the precise move to win.} Qd1+ 38. Kh2 (38. Re1 Qd6 $16)) 37... Nc5 {[%emt 0:00:07]} 38. Qa7 {[%emt 0:00:04] Strongly threatening Bc7.} Bxf3 $4 {[%emt 0:00:04][%mdl 8192] [#]} (38... Rb5 $16) 39. Bc7 $1 {[%emt 0:00:07] Weighted Error Value: White=0.36/Black=0.47.  Loses game:     	---       	Black=3      Missed win:     	White=2     	---        Mistake:       	White=3     	Black=4      Inaccurate:     	---       	Black=1      OK:         	White=10    	Black=11     Best:        	White=1     	Black=2      Strong:       	White=4     	Black=2} ({Weaker is} 39. Qxc5 Qxc5 40. Rxc5 Be2 $14) ({And not} 39. Rxc5 Rg8 40. Qc7 (40. gxf3 Bd4 $15) 40... Qd1+ 41. Kh2 Qd4 $11) (39. gxf3 Nb3 40. Bc7 Qf8 41. Bxb8 (41. Qxb8 Qxb8 42. Bxb8 Nxc1 $16) 41... Nxc1 $16) 1-0